Workbook

Sheet 表1 收入总体情况表
A1: 表1
A2: 收支总体情况表
A3: 单位名称：开平市水务局 | C3: 单位：万元
A4: 收 入 | C4: 支 出
A5: 项 目 | B5: 2018年预算 | C5: 项 目 | D5: 2018年预算
A6: 一、财政拨款 | B6: 17617.72 | C6: 一、基本支出 | D6: 1000.62
A7: 二、财政专户拨款 | B7: 328.04 | C7: 二、项目支出 | D7: 16945.14
A8: 三、其他资金 | B8: 0.00 | C8: 三、单位经营支出 | D8: 0.00
A10: 本年收入合计 | B10: 17945.76 | C10: 本年支出合计 | D10: 17945.76
A12: 四、上级补助收入 | B12: 0.00 | C12: 四、对附属单位补助支出 | D12: 0.00
A13: 五、附属单位上缴收入 | B13: 0.00 | C13: 五、上缴上级支出 | D13: 0.00
A14: 六、用事业基金弥补收支总额 | B14: 0.00 | C14: 六、结转下年 | D14: 0.00
A16: 收入总计 | B16: =B10 -> 17945.76 | C16: 支出总计 | D16: =D10 -> 17945.76
A17: 注：财政拨款收支情况包括一般公共预算、政府性基金预算、国有资本经营预算拨款收支情况。

Sheet 表2 收入总体情况表
A1: 表2
A2: 收入总体情况表
A3: 单位名称：开平市水务局 | B3: 单位：万元
A4: 项 目 | B4: 2018年预算
A5: 一、预算拨款 | B5: 17617.72
A6: 一般公共预算拨款 | B6: 11,076.32
A7: 基金预算拨款 | B7: 6,541.40
A8: 二、财政专户拨款 | B8: 328.04
A9: 教育收费 | B9: 0.00
A10: 其他财政收入拨款 | B10: 328.04
A11: 三、其他资金 | B11: 0.00
A12: 事业收入
A13: 事业单位经营收入
A14: 其他收入
A16: 本年收入合计 | B16: 17945.76
A18: 四、上级补助收入 | B18: 0.00
A19: 五、附属单位上缴收入 | B19: 0.00
A20: 六、用事业基金弥补收支总额 | B20: 0.00
A22: 收 入 总 计 | B22: =B16 -> 17945.76

Sheet 表3 支出总体情况表
A1: 表3
A2: 支出总体情况表
A3: 单位名称：开平市水务局 | B3: 单位：万元
A4: 项 目 | B4: 2018年预算
A5: 一、基本支出 | B5: =SUM(B6:B9) -> 1000.62
A6: 工资福利支出 | B6: 734.29
A7: 一般商品和服务支出 | B7: 85.08
A8: 对个人和家庭的补助 | B8: 181.25
A9: 其他资本性支出等
A11: 二、项目支出 | B11: 16945.14
A12: 日常运转类项目 | B12: 223.10
A13: 政府购买服务类项目 | B13: 1314.00
A14: 其他类项目 | B14: 4060.82
A15: 科技研发类项目
A16: 基本建设类项目 | B16: 10633.49
A17: 补助企事业类项目 | B17: 385.69
A18: 信息化运维类项目
A19: 专项业务类项目 | B19: 328.04
A20: 因公出国（境）项目
A21: 信息系统建设类项目
A23: 三、事业单位经营支出 | B23: 0.00
A25: 本 年 支 出 合 计 | B25: =B5+B11 -> 17945.76
A27: 四、对附属单位补助支出 | B27: 0.00
A28: 五、上缴上级支出 | B28: 0.00
A29: 六、结转下年 | B29: 0.00
A31: 支 出 总 计 | B31: =B25 -> 17945.76

Sheet 表4 财政拨款收支总体情况表
A1: 表4
A2: 财政拨款收支总体情况表
A3: 单位名称：开平市水务局 | D3: 单位：万元
A4: 收 入 | C4: 支 出
A5: 项 目 | B5: 2018年预算 | C5: 项 目 | E5: 2018年预算
A6: 一、一般公共预算 | B6: 11,076.32 | C6: 一、一般公共预算 | E6: 11,076.32
A7: 二、政府性基金预算 | B7: 6,541.40 | C7: 二、政府性基金预算 | E7: 6,541.40
A8: 三、国有资本经营预算 | C8: 三、国有资本经营预算
A10: 本年收入合计 | B10: =B6+B7 -> 17617.72 | C10: 本年支出合计 | E10: =E6+E7 -> 17617.72

Sheet 表5 一般公共预算支出情况表（按功能分类科目）
A1: 表5
A2: 一般公共预算支出情况表（按功能分类科目）
A3: 单位名称：开平市水务局 单位：万元
A4: 功能科目名称 | B4: 一般公共预算支出
B5: 小计 | C5: 其中：基本支出 | D5: 项目支出
A6: 合 计 | B6: 11076.32 | C6: 1000.62 | D6: 10075.70
A7: 208 社会保障和就业支出 | B7: 502.97 | C7: 295.50 | D7: 207.47
A8: 20805 行政事业单位离退休 | B8: 284.58 | C8: 284.58 | D8: 0.00
A9: 2080501 归口管理的行政单位离退休 | B9: 158.42 | C9: 158.42 | D9: 0.00
A10: 2080502 事业单位离退休 | B10: 15.72 | C10: 15.72 | D10: 0.00
A11: 2080505 机关事业单位基本养老保险缴费支出 | B11: 79.00 | C11: 79.00 | D11: 0.00
A12: 2080506 机关事业单位职业年金缴费支出 | B12: 31.44 | C12: 31.44 | D12: 0.00
A13: 20808 抚恤 | B13: 7.11 | C13: 7.11 | D13: 0.00
A14: 2080801 死亡抚恤 | B14: 7.11 | C14: 7.11 | D14: 0.00
A15: 20815 自然灾害生活救助 | B15: 207.47 | C15: 0.00 | D15: 207.47
A16: 2081503 自然灾害灾后重建补助 | B16: 207.47 | C16: 0.00 | D16: 207.47
A17: 20899 其他社会保障和就业支出 | B17: 3.81 | C17: 3.81 | D17: 0.00
A18: 2089901 其他社会保障和就业支出 | B18: 3.81 | C18: 3.81 | D18: 0.00
A19: 210 医疗卫生与计划生育支出 | B19: 51.19 | C19: 51.19 | D19: 0.00
A20: 21011 行政事业单位医疗 | B20: 51.19 | C20: 51.19 | D20: 0.00
A21: 2101101 行政单位医疗 | B21: 23.26 | C21: 23.26 | D21: 0.00
A22: 2101102 事业单位医疗 | B22: 8.08 | C22: 8.08 | D22: 0.00
A23: 2101103 公务员医疗补助 | B23: 19.85 | C23: 19.85 | D23: 0.00
A24: 211 节能环保支出 | B24: 413.91 | C24: 41.43 | D24: 372.48
A25: 21103 污染防治 | B25: 413.91 | C25: 41.43 | D25: 372.48
A26: 2110302 水体 | B26: 191.91 | C26: 41.43 | D26: 150.48
A27: 2110399 其他污染防治支出 | B27: 222.00 | C27: 0.00 | D27: 222.00
A28: 213 农林水支出 | B28: 10045.50 | C28: 560.43 | D28: 9485.07
A29: 21303 水利 | B29: 10045.50 | C29: 560.43 | D29: 9485.07
A30: 2130301 行政运行 | B30: 420.32 | C30: 420.32 | D30: 0.00
A31: 2130304 水利行业业务管理 | B31: 148.27 | C31: 140.11 | D31: 8.16
A32: 2130305 水利工程建设 | B32: 2071.28 | C32: 0.00 | D32: 2071.28
A33: 2130306 水利工程运行与维护 | B33: 5.00 | C33: 0.00 | D33: 5.00
A34: 2130308 水利前期工作 | B34: 737.80 | C34: 0.00 | D34: 737.80
A35: 2130309 水利执法监督 | B35: 76.00 | C35: 0.00 | D35: 76.00
A36: 2130311 水资源节约管理与保护 | B36: 641.75 | C36: 0.00 | D36: 641.75
A37: 2130312 水质监测 | B37: 77.00 | C37: 0.00 | D37: 77.00
A38: 2130314 防汛 | B38: 1394.38 | C38: 0.00 | D38: 1394.38
A39: 2130316 农田水利 | B39: 31 | C39: 0 | D39: 31
A40: 2130321 大中型水库移民后期扶持专项支出 | B40: 15.41 | C40: 0 | D40: 15.41
A41: 2130334 水利建设移民支出 | B41: 15 | C41: 0 | D41: 15
A42: 2130399 其他水利支出 | B42: 4412.29 | C42: 0 | D42: 4412.29
A43: 221 住房保障支出 | B43: 52.07 | C43: 52.07 | D43: 0
A44: 22102 住房改革支出 | B44: 52.07 | C44: 52.07 | D44: 0
A45: 2210201 住房公积金 | B45: 52.07 | C45: 52.07 | D45: 0
A46: 229 其他支出 | B46: 10.68 | C46: 0 | D46: 10.68
A47: 22999 其他支出 | B47: 10.68 | C47: 0 | D47: 10.68
A48: 2299901 其他支出 | B48: 10.68 | C48: 0 | D48: 10.68

Sheet 表6 一般公共预算基本支出情况表（按支出经济分类科目）
A1: 表6
A2: 一般公共预算基本支出情况表（按支出经济分类科目）
A3: 单位名称： 开平市水务局 | C3: 单位：万元
A4: 政府预算支出经济分类 | B4: 部门预算支出经济科目 | C4: 2018年本年预算
B5: 合 计 | C5: =C6+C18+C41+C43+C55+C62 -> 1000.62
A6: [501]机关工资福利支出 | B6: [301]工资福利支出 | C6: 513.94
A7: [50101]工资奖金津补贴 | B7: [30101]基本工资 | C7: 105.02
A8: [50101]工资奖金津补贴 | B8: [30102]津贴补贴 | C8: 190.04
A9: [50101]工资奖金津补贴 | B9: [30103]奖金 | C9: 28.80
A10: [50102]社会保障缴费 | B10: [30108]机关事业单位基本养老保险缴费 | C10: 54.31
A11: [50102]社会保障缴费 | B11: [30109]职业年金缴费 | C11: 21.56
A12: [50102]社会保障缴费 | B12: [30110]城镇职工基本医疗保险缴费 | C12: 23.26
A13: [50102]社会保障缴费 | B13: [30111]公务员医疗补助缴费 | C13: 14.87
A14: [50102]社会保障缴费 | B14: [30112]其他社会保障缴费 | C14: 2.02
A15: [50103]住房公积金 | B15: [30113]住房公积金 | C15: 35.53
A16: [50199]其他工资福利支出 | B16: [30106]伙食补助费 | C16: 0.00
A17: [50199]其他工资福利支出 | B17: [30199]其他工资福利支出 | C17: 38.53
A18: [502]机关商品和服务支出 | B18: [302]商品和服务支出 | C18: =SUM(C19:C40) -> 57.93
A19: [50201]办公经费 | B19: [30201]办公费 | C19: 0.00
A20: [50201]办公经费 | B20: [30202]印刷费 | C20: 0.00
A21: [50201]办公经费 | B21: [30204]手续费 | C21: 0.00
A22: [50201]办公经费 | B22: [30205]水费 | C22: 0.00
A23: [50201]办公经费 | B23: [30206]电费 | C23: 0.00
A24: [50201]办公经费 | B24: [30207]邮电费 | C24: 0.00
A25: [50201]办公经费 | B25: [30209]物业管理费 | C25: 0.00
A26: [50201]办公经费 | B26: [30211]差旅费 | C26: 0.00
A27: [50201]办公经费 | B27: [30214]租赁费 | C27: 0.00
A28: [50201]办公经费 | B28: [30228]工会经费 | C28: 1.07
A29: [50201]办公经费 | B29: [30229]福利费 | C29: 0.27
A30: [50201]办公经费 | B30: [30239]其他交通费用 | C30: 23.52
A31: [50202]会议费 | B31: [30215]会议费 | C31: 1.00
A32: [50203]培训费 | B32: [30216]培训费 | C32: 0.00
A33: [50205]委托业务费 | B33: [30203]咨询费 | C33: 0.00
A34: [50205]委托业务费 | B34: [30226]劳务费 | C34: 0.00
A35: [50205]委托业务费 | B35: [30227]委托业务费 | C35: 0.00
A36: [50206]公务接待费 | B36: [30217]公务接待费 | C36: 5.40
A37: [50207]因公出国（境）费用 | B37: [30212]因公出国（境）费用 | C37: 0.00
A38: [50208]公务用车运行维护费 | B38: [30231]公务用车运行维护费 | C38: 6.90
A39: [50209]维修（护）费 | B39: [30213]维修（护）费 | C39: 0.00
A40: [50299]其他商品和服务支出 | B40: [30299]其他商品和服务支出 | C40: 19.77
A41: [503]机关资本性支出(一） | B41: [310]资本性支出 | C41: 0.00
A42: [50306]设备购置 | B42: [31002]办公设备购置 | C42: 0.00
A43: [505]对事业单位经常性补助 | B43: [301]工资福利支出 | C43: =SUM(C44:C54) -> 220.35
A44: [50501]工资福利支出 | B44: [30101]基本工资 | C44: 51.25
A45: [50501]工资福利支出 | B45: [30102]津贴补贴 | C45: 40.70
A46: [50501]工资福利支出 | B46: [30103]奖金 | C46: 0.00
A47: [50501]工资福利支出 | B47: [30107]绩效工资 | C47: 45.90
A48: [50501]工资福利支出 | B48: [30108]机关事业单位基本养老保险缴费 | C48: 24.69
A49: [50501]工资福利支出 | B49: [30109]职业年金缴费 | C49: 9.88
A50: [50501]工资福利支出 | B50: [30110]城镇职工基本医疗保险缴费 | C50: 8.08
A51: [50501]工资福利支出 | B51: [30111]公务员医疗补助缴费 | C51: 4.98
A52: [50501]工资福利支出 | B52: [30112]其他社会保障缴费 | C52: 1.79
A53: [50501]工资福利支出 | B53: [30113]住房公积金 | C53: 16.54
A54: [50501]工资福利支出 | B54: [30199]其他工资福利支出 | C54: 16.54
A55: [505]对事业单位经常性补助 | B55: [302]商品和服务支出 | C55: =SUM(C56:C61) -> 27.15
A56: [50502]商品和服务支出 | B56: [30201]办公费 | C56: 0.00
A57: [50502]商品和服务支出 | B57: [30217]公务接待费 | C57: 3.40
A58: [50502]商品和服务支出 | B58: [30228]工会经费 | C58: 0.55
A59: [50502]商品和服务支出 | B59: [30229]福利费 | C59: 0.14
A60: [50502]商品和服务支出 | B60: [30231]公务用车运行维护费 | C60: 6.70
A61: [50502]商品和服务支出 | B61: [30299]其他商品和服务支出 | C61: 16.36
A62: [509]对个人和家庭的补助 | B62: [303]对个人和家庭的补助 | C62: =SUM(C63:C69) -> 181.25
A63: [50901]社会福利和敉助 | B63: [30304]抚恤金 | C63: 0.00
A64: [50901]社会福利和敉助 | B64: [30305]生活补助 | C64: 7.11
A65: [50901]社会福利和敉助 | B65: [30307]医疗费补助 | C65: 0.00
A66: [50901]社会福利和敉助 | B66: [30309]奖励金 | C66: 0.00
A67: [50905]离退休费 | B67: [30301]离休费 | C67: 0.00
A68: [50905]离退休费 | B68: [30302]退休费 | C68: 174.14
A69: [50999]其他对个人和家庭的补助 | B69: [30399]其他对个人和家庭的补助 | C69: 0.00

Sheet 表7 一般公共预算项目支出情况表（按支出经济分类科目）
A1: 表7
A2: 一般公共预算项目支出情况表（按支出经济分类科目）
A3: 单位名称：开平市水务局 | B3: 单位：万元 | C3: 单位：万元
A4: 政府顸算支出经济分类 | B4: 部门预算支出经济科目 | C4: 2018年本年预算
B5: 合 计 | C5: =C6+C9+C28+C39+C42+C45 -> 10075.70
A6: [501]机关工资福利支出 | B6: [301]工资福利支出 | C6: =SUM(C7:C8) -> 15.00
A7: [50199]其他工资福利支出 | B7: [30106]伙食补助费 | C7: 0.00
A8: [50199]其他工资福利支出 | B8: [30199]其他工资福利支出 | C8: 15.00
A9: [502]机关商品和服务支出 | B9: [302]商品和服务支出 | C9: =SUM(C10:C27) -> 1522.10
A10: [50201]办公经费 | B10: [30201]办公费 | C10: 0.00
A11: [50201]办公经费 | B11: [30202]印刷费 | C11: 8.16
A12: [50201]办公经费 | B12: [30204]手续费 | C12: 0.00
A13: [50201]办公经费 | B13: [30205]水费 | C13: 0.00
A14: [50201]办公经费 | B14: [30206]电费 | C14: 0.00
A15: [50201]办公经费 | B15: [30207]邮电费 | C15: 0.00
A16: [50201]办公经费 | B16: [30209]物业管理费 | C16: 0.00
A17: [50201]办公经费 | B17: [30211]差旅费 | C17: 0.00
A18: [50201]办公经费 | B18: [30214]租赁费 | C18: 6.00
A19: [50201]办公经费 | B19: [30239]其他交通费用 | C19: 0.00
A20: [50202]会议费 | B20: [30215]会议费 | C20: 0.00
A21: [50203]培训费 | B21: [30216]培训费 | C21: 5.00
A22: [50205]委托业务费 | B22: [30203]咨询费 | C22: 2.00
A23: [50205]委托业务费 | B23: [30226]劳务费 | C23: 1228.96
A24: [50206]公务接待费 | B24: [30217]公务接待费 | C24: 0.00
A25: [50208]公务用车运行维护费 | B25: [30231]公务用车运行维护费 | C25: 0.00
A26: [50209]维修（护）费 | B26: [30213]维修（护）费 | C26: 117.30
A27: [50299]其他商品和服务支出 | B27: [30299]其他商品和服务支出 | C27: 154.68
A28: [503]机关资本性支出(一） | B28: [310]资本性支出 | C28: =SUM(C29:C38) -> 4092.09
A29: [50301]房屋建筑物购建 | B29: [31001]房屋建筑物购建 | C29: 0.00
A30: [50302]基础设施建设 | B30: [31005]基础设施建设 | C30: 2422.69
A31: [50303]公务用车购置 | B31: [31013]公务用车购置 | C31: 0.00
A32: [50306]设备购置 | B32: [31002]办公设备购置 | C32: 6.00
A33: [50306]设备购置 | B33: [31003]专用设备购置 | C33: 65.75
A34: [50306]设备购置 | B34: [31007]信息网络及软件购置更新 | C34: 0.00
A35: [50306]设备购置 | B35: [31019]其他交通工具购置 | C35: 37.00
A36: [50307]大型修缮 | B36: [31006]大型修缮 | C36: 0.00
A37: [50399]其他资本性支出 | B37: [31008]物资储备 | C37: 37.47
A38: [50399]其他资本性支出 | B38: [31099]其他资本性支出 | C38: 1523.18
A39: [509]对个人和家庭的补助 | B39: [303]对个人和家庭的补助 | C39: =SUM(C40:C41) -> 0.00
A40: [50901]社会福利和敉助 | B40: [30307]医疗费补助 | C40: 0.00
A41: [50999]其他对个人和家庭的补助 | B41: [30399]其他对个人和家庭的补助 | C41: 0.00
A42: [507]对企业补助 | B42: [312]对企业补助 | C42: =SUM(C43:C44) -> 385.69
A43: [50701]费用补贴 | B43: [31204]费用补贴 | C43: 84.95
A44: [50799]其他对企业补助 | B44: [31299]其他对企业补助 | C44: 300.74
A45: [599]其他支出 | B45: 399 其他支出 | C45: =C46 -> 4060.82
A46: [59999]其他支出 | B46: 39999 其他支出 | C46: 4060.82

Sheet 表8 一般公共预算安排的行政经费及“三公”经费预算表
A1: 表8
A2: 一般公共预算安排的行政经费及“三公”经费预算表
A3: 单位名称： 开平市水务局 | B3: 单位：万元
A4: 项 目 | B4: 2018年预算
A5: 行政经费 | B5: 558.80
A6: “三公”经费 | B6: 22.40
A7: 其中：（一）因公出国（境）支出 | B7: 0.00
A8: （二）公务用车购置及运行维护支出 | B8: 13.60
A9: 1.公务用车购置 | B9: 0.00
A10: 2.公务用车运行维护费 | B10: 13.60
A11: (三）公务接待费支出 | B11: 8.80
A13: 注：
A14: 1、行政经费包括：（1)基本支出。一是包括工资、津贴及奖金、医疗费、住房补贴等（不包括离退休 支出，包括离退休人员管理机构的在取人员支出）基本支出；二是包括办公及印刷费、水电费、邮电费、取暖费、交通费、差旅费、会议费、福利费、物业管理费、日常维修费、专用材料费、一般购置费等公用经费支出。（非行政单位不纳入统计范围） （2) —般行政管理项目支出。具体包括出国费、招待费、会议费、办公用房维修租赁、购置费（包括设备、计算机、车辆等）、干部培训费、执法部门办案费、信息网络运行维护费等。
A15: 2、“三公”经费包括因公出国（境）经费、公务用车购置及运行维护费和公务接待费。其中：因公出国(境）经费指省直行政单位、事业单位工作人员公务出国（境）的住宿费、差旅费、伙食补助费、杂费、培训费等支出；公务用车购置及运行维护费指省直行政单位、事业单位公务用车购置费、公务用车租用费 、燃料费、维修费、过桥过路费、保险费等支出；公务接待费指省直行政单位、事业单位按规定开支的各类公务接待（外宾接待）费用。

Sheet 表9 政府性基金预算支出情况表
A1: 表9
A2: 2018年政府性基金预算支出情况表
A3: 单位名称：开平市水务局 | B3: 单位：万元 | D3: 单位：万元
A4: 功能科目名称 | B4: 政府性基金预算支出
B5: 小计 | C5: 其中：基本支出 | D5: 项目支出
A6: 合计 | B6: 6541.40 | C6: 0.00 | D6: 6541.40
A7: 208 社会保障和就业支出 | B7: 1079.34 | C7: 0.00 | D7: 1079.34
A8: 20822 大中型水库移民后期扶持基金支出 | B8: 932.66 | C8: 0.00 | D8: 932.66
A9: 2082201 移民补助 | B9: 108.90 | C9: 0.00 | D9: 108.90
A10: 2082202 基础设施建设和经济发展 | B10: 796.76 | C10: 0.00 | D10: 796.76
A11: 2082299 其他大中型水库移民后期扶持基金支出 | B11: 27.00 | C11: 0.00 | D11: 27.00
A12: 20823 小型水库移民扶助基金及对应专项债务收入安排的支出 | B12: 146.68 | C12: 0.00 | D12: 146.68
A13: 2082302 基础设施建设和经济发展 | B13: 146.68 | C13: 0.00 | D13: 146.68
A14: 212 城乡社区支出 | B14: 5445.04 | C14: 0.00 | D14: 5445.04
A15: 21208 国有土地使用权出让收入及对应专项债务收入安排的支出 | B15: 1768.52 | C15: 0.00 | D15: 1768.52
A16: 2120804 农村基础设施建设支出 | B16: 1768.52 | C16: 0.00 | D16: 1768.52
A17: 21213 城市基础设施配套费及对应专项债务收入安排的支出 | B17: 895.00 | C17: 0.00 | D17: 895.00
A18: 2121301 城市公共设施 | B18: 220.00 | C18: 0.00 | D18: 220.00
A19: 2121302 城市环境卫生 | B19: 655.00 | C19: 0.00 | D19: 655.00
A20: 2121399 其他城市基础设施配套费安排的支出 | B20: 20.00 | C20: 0.00 | D20: 20.00
A21: 21214 污水处理费及对应专项债务收入安排的支出 | B21: 2781.52 | C21: 0.00 | D21: 2781.52
A22: 2121401 污水处理设施建设和运营 | B22: 2709.52 | C22: 0.00 | D22: 2709.52
A23: 2121402 代征手续费 | B23: 72.00 | C23: 0.00 | D23: 72.00
A24: 213 农林水支出 | B24: 17.02 | C24: 0.00 | D24: 17.02
A25: 21366 大中型水库库区基金及对应专项债务收入安排的支出 | B25: 17.02 | C25: 0.00 | D25: 17.02
A26: 2136601 基础设施建设和经济发展 | B26: 17.02 | C26: 0.00 | D26: 17.02

Sheet 表10 部门预算基本支出预算表
A1: 表10
A2: 2018年部门预算基本支出预算表
A3: 单位名称：开平市水务局 | H3: 金额：万元
A4: 支出项目类别 | B4: 总计 | C4: 财 政 拨 款 | G4: 财政专户 | H4: 其他资金
A5: （资金使用单位） | C5: 合计 | D5: 一般 | E5: 政府性 | F5: 国有资本 | G5: 拨款
D6: 公共预算 | E6: 基金预算 | F6: 经营预算
A7: ** | B7: 1 | C7: 2 | D7: 3 | E7: 4 | F7: 5 | G7: 6 | H7: 7
A8: 合计 | B8: 1000.62 | C8: 1000.62 | D8: 1000.62 | E8: 0.00 | F8: 0.00 | G8: 0.00 | H8: 0.00
A9: 开平市水务局 | B9: 1000.62 | C9: 1000.62 | D9: 1000.62 | E9: 0.00 | F9: 0.00 | G9: 0.00 | H9: 0.00

Sheet 表11 部门预算项目支出及其他支出预算表
A1: 表11
A2: 2018年部门预算项目支出及其他支出预算表
A3: 单位名称：开平市水务局 | B3: 金额：万元
A4: 支出项目类别 | B4: 总计 | C4: 财 政 拨 款 | G4: 财政专户拨款 | H4: 其他资金 | I4: 绩效目标
A5: （资金使用单位） | C5: 合计 | D5: 一般 | E5: 政府性 | F5: 国有资本经营预算
D6: 公共预算 | E6: 基金预算
A7: ** | B7: 1 | C7: 2 | D7: 3 | E7: 4 | F7: 5 | G7: 6 | H7: 7 | I7: 8
A8: 合计 | B8: =C8+G8 -> 16945.14 | C8: =D8+E8+F8 -> 16617.10 | D8: =D9 -> 10075.70 | E8: =E9 -> 6541.40 | F8: 0.00 | G8: =G9 -> 328.04 | H8: 0.00 | I8: 600
A9: 开平市水务局 | B9: =C9+G9 -> 16945.14 | C9: =D9+E9+F9 -> 16617.10 | D9: 10075.70 | E9: 6541.40 | F9: 0.00 | G9: 328.04 | H9: 0.00 | I9: 600
